Cogmind - Beta 11 X8 @@@ ROGUE MODE // 2021.11.10 @ 00:05:23 Player: Olga Result: Self-destructed Performance ------------- Evolutions (3) 1500 Regions Visited (8) 1600 Robots Destroyed (46) 230 Value Destroyed (1610) 1610 Prototype IDs (2) 40 Alien Tech Used (0) 0 Bonus (522) 522 TOTAL SCORE: 5502 Bonus ------- High Alert Combat Kills 22 Entered Garrisons 200 Aligned with FarCom 300 Cogmind --------- Core Integrity 685/700 Matter 12/300 Energy 290/290 System Corruption 1% Temperature Cool (0) Movement Walking (105) Location -7/Garrison Parts ------- > --- POWER (1) -------- Improved Deuterium Engine > --- PROPULSION (4) --- Aluminum Leg Aluminum Leg Potential Leg Potential Leg > --- UTILITY (6) ------ Large Storage Unit Signal Interpreter Target Analyzer Improved Propulsion Shielding Hardened Heavy Armor Plating > --- WEAPON (2) ------- Minigun Rocket Launcher > --- INVENTORY (15) --- Light Ion Engine Improved Ion Engine Light Nuclear Core Aluminum Leg Aluminum Leg Improved Aluminum Leg Small Storage Unit Hardened Heavy Armor Plating Reflective Plating Relay Coupler [Sentry] (19) Faulty Precision Beam Rifle Heavy Assault Rifle Peak State ------------ > --- POWER ------------ Light Ion Engine > --- PROPULSION ------- Aluminum Leg Potential Leg Potential Leg Aerolev Unit > --- UTILITY ---------- Large Storage Unit Signal Interpreter Maneuvering Thrusters Hardened Heavy Armor Plating Hacking Suite > --- WEAPON ----------- Minigun Rocket Launcher > --- INVENTORY -------- Ion Engine Improved Ion Engine Light Nuclear Core Aluminum Leg Aluminum Leg Aluminum Leg Improved Aluminum Leg Small Storage Unit Target Analyzer Improved Propulsion Shielding Hardened Heavy Armor Plating Reflective Plating Precision Beam Rifle Heavy Assault Rifle [Rating: 50] Favorites ----------- Power Improved Ion Engine Engine Improved Ion Engine Propulsion Potential Leg Treads Light Treads Leg Potential Leg Wheel Wheel Hover Unit Aerolev Unit Utility Large Storage Unit Device Maneuvering Thrusters Storage Large Storage Unit Processor Signal Interpreter Hackware Hacking Suite Protection Hardened Heavy Armor Plating Weapon Heavy Assault Rifle Energy Gun Medium Laser Ballistic Gun Heavy Assault Rifle Launcher Rocket Launcher Build | -11 -10 -9 -9 -9 -8 -8 -7 -7 ------- Run | Scr Mat Mat Min Exi Min Mat Fac Gar Slots Evolved 6 | . . 2 . . . 2 2 . Power . | . . . . . . . . . Propulsion 2 | . . . . . . . 2 . Utility 4 | . . 2 . . . 2 . . Weapon . | . . . . . . . . . Parts Attached 43 | . 7 2 5 2 3 16 6 2 Power 4 | . 1 1 . . . 1 1 . Engine 4 | . 1 1 . . . 1 1 . Core . | . . . . . . . . . Reactor . | . . . . . . . . . Propulsion 11 | . 2 . 2 2 . 1 4 . Treads 2 | . 2 . . . . . . . Leg 6 | . . . . 2 . 1 3 . Wheel 2 | . . . 2 . . . . . Hover 1 | . . . . . . . 1 . Flight . | . . . . . . . . . Utility 11 | . 2 1 . . . 5 1 2 Device 3 | . . 1 . . . 2 . . Storage 1 | . 1 . . . . . . . Processor 2 | . 1 . . . . . . 1 Hackware 1 | . . . . . . 1 . . Protection 4 | . . . . . . 2 1 1 Artifact . | . . . . . . . . . Weapon 17 | . 2 . 3 . 3 9 . . Energy Gun . | . . . . . . . . . Energy Cannon . | . . . . . . . . . Ballistic Gun 10 | . 2 . 1 . 3 4 . . Ballistic Cannon . | . . . . . . . . . Launcher 7 | . . . 2 . . 5 . . Special Weapon . | . . . . . . . . . Impact Weapon . | . . . . . . . . . Slashing Weapon . | . . . . . . . . . Piercing Weapon . | . . . . . . . . . Special Melee Weapon . | . . . . . . . . . Unidentified Prototypes 2 | . . . . 1 . . 1 . Parts Lost 11 | . . 1 2 . . 6 . 2 Power . | . . . . . . . . . Propulsion 1 | . . 1 . . . . . . Utility 3 | . . . 1 . . . . 2 Weapon 7 | . . . 1 . . 6 . . Highest Loss Streak 4 | . . 1 2 . . 4 . 2 Average Slot Usage (%) 87 | . 95 81 86 77 77 90 87 90 Engine 10 | . 14 11 11 11 11 9 7 7 Treads 10 | . 25 22 . . . . . . Leg 10 | . 2 . . 9 22 18 25 30 Wheel 2 | . . . 22 12 . . . . Device 3 | . . 4 9 . . 13 7 1 Storage 10 | . 14 11 11 11 11 9 7 7 Processor 10 | . 9 11 11 11 11 9 7 13 Hackware 1 | . . . . . . 8 7 1 Protection 2 | . . . . . . 4 6 13 Energy Gun 1 | . 4 . . . . . . . Ballistic Gun 15 | . 24 22 1 . 18 13 7 7 Launcher 5 | . . . 20 22 3 4 7 7 Naked Turns . | . . . . . . . . . Heaviest Build 59 | 14 31 34 36 35 35 36 58 59 Greatest Support 80 | 20 40 40 20 60 60 60 80 80 Greatest Overweight (x) 6 | . . 1 1 1 . . 6 . Average Overweight (x) . | . . . 1 . . . . . Largest Inventory Capacity 15 | . 15 15 15 15 15 15 15 15 Average Capacity 14 | . 14 15 15 15 15 15 15 15 Most Carried 15 | . 15 15 14 11 10 15 15 14 Average Carried 12 | . 13 15 10 9 9 10 14 12 Final Capacity 15 | 8 15 15 15 15 15 15 15 15 Final Carried 15 | 6 15 15 10 9 10 14 14 13 Class Distribution -------------------- 100% | Mutant Dominant Class ---------------- Mutant | -10/Materials Mutant | -9/Materials Mutant | -9/Mines Mutant | -9/Exiles Mutant | -8/Mines Mutant | -8/Materials Mutant | -7/Factory Mutant | -7/Garrison Resources | -11 -10 -9 -9 -9 -8 -8 -7 -7 ----------- Run | Scr Mat Mat Min Exi Min Mat Fac Gar Matter Collected 1019 | 200 149 109 21 . 158 259 115 8 Remotely 72 | . . 52 20 . . . . . Salvage Created 1070 | . 197 278 24 . 158 235 115 63 Parts 64 | . 19 16 7 . 6 9 4 3 Haulers Intercepted . | . . . . . . . . . Recyclers Shooed 1 | . . . . . . 1 . . Parts Field Recycled . | . . . . . . . . . Retrieved Matter . | . . . . . . . . . Parts Self-Destructed . | . . . . . . . . . Prevented . | . . . . . . . . . Kills | -11 -10 -9 -9 -9 -8 -8 -7 -7 ------- Run | Scr Mat Mat Min Exi Min Mat Fac Gar Combat Hostiles Destroyed 40 | . 8 6 7 . 3 11 2 3 Melee 2 | . . . . . . . 2 . Guns 21 | . 8 6 . . 3 3 . 1 AOE 17 | . . . 7 . . 8 . 2 Classes Destroyed 8 | . 4 2 1 . . 1 . . Worker 2 | . . 1 . . . 1 . . Tunneler 2 | . 1 . 1 . . . . . Recycler 1 | . . . . . . 1 . . Watcher 1 | . 1 . . . . . . . Swarmer 13 | . 6 . 4 . . 3 . . Grunt 23 | . 2 5 2 . 3 6 2 3 Duelist 1 | . . . 1 . . . . . Sentry 3 | . . 1 . . . 2 . . Best Kill Streak 10 | . 3 4 4 . 2 10 2 3 Combat Bots Only 8 | . 3 3 4 . 2 8 2 3 Max Kills in Single Turn 3 | . 1 1 3 . 1 2 1 2 Gunslinging . | . . . . . . . . . Exploded 3 | . . . 3 . . 2 . 1 Melee 1 | . . . . . . . 1 . Uniques/NPCs Destroyed . | . . . . . . . . . Combat | -11 -10 -9 -9 -9 -8 -8 -7 -7 -------- Run | Scr Mat Mat Min Exi Min Mat Fac Gar Damage Taken 2330 | . 402 218 341 . 133 671 169 396 Core 286 | . 71 23 82 . 37 58 15 . Absorbed by Shields . | . . . . . . . . . Core Remaining (%) 81 | 100 71 . . . 64 89 . . Volleys Fired 82 | . 23 12 6 . 12 20 . 9 Largest 2 | . 2 2 2 . 2 2 . 2 Hottest 90 | . 90 46 66 . 46 66 . 58 Shots Fired 162 | . 46 24 12 . 24 39 . 17 Gun 120 | . 46 24 2 . 24 15 . 9 Cannon . | . . . . . . . . . Launcher 42 | . . . 10 . . 24 . 8 Special . | . . . . . . . . . Kinetic 106 | . 32 24 2 . 24 15 . 9 Thermal 7 | . 7 . . . . . . . Explosive 42 | . . . 10 . . 24 . 8 Electromagnetic 7 | . 7 . . . . . . . Robot Hit Streak 9 | . 4 5 3 . 6 8 . 9 Robot Miss Streak 3 | . 3 2 3 . 3 2 . 3 Penetration Max . | . . . . . . . . . Secondary Targets 2 | . 1 1 . . . . . . Max Gunslinging Chain 1 | . 1 1 . . . . . . Shots Hit Robots 93 | . 26 15 5 . 17 23 . 7 Core Hits 86 | . 12 9 13 . 8 27 3 14 Critical Kills . | . . . . . . . . . Critical Parts Destroyed . | . . . . . . . . . Critical Strikes . | . . . . . . . . . Melee Attacks . | . . . . . . . . . Impact . | . . . . . . . . . Slashing . | . . . . . . . . . Piercing . | . . . . . . . . . Sneak Attacks . | . . . . . . . . . Combat Hostiles . | . . . . . . . . . Follow-up Attacks . | . . . . . . . . . Damage Inflicted 3655 | . 488 235 806 . 315 1211 223 377 Guns 1095 | . 370 235 . . 277 131 . 82 Cannons . | . . . . . . . . . Explosions 2293 | . 112 . 806 . . 1080 . 295 Melee . | . . . . . . . . . Ramming 267 | . 6 . . . 38 . 223 . Kinetic 988 | . 263 235 . . 277 131 . 82 Thermal 137 | . 137 . . . . . . . Explosive 2181 | . . . 806 . . 1080 . 295 Electromagnetic 82 | . 82 . . . . . . . Impact . | . . . . . . . . . Slashing . | . . . . . . . . . Piercing . | . . . . . . . . . Highest Corruption 1 | . . . . . . . . 1 Average Corruption 1 | . . . . . . . . 1 Corruption Purged . | . . . . . . . . . Overload Shots . | . . . . . . . . . Overflow Damage 73 | . . . 10 . . 63 . . Projectiles . | . . . . . . . . . Explosions 73 | . . . 10 . . 63 . . Melee . | . . . . . . . . . Knockbacks 3 | . . . . . . . 3 . Impact 3 | . . . . . . . 3 . Kinetic . | . . . . . . . . . Secondary . | . . . . . . . . . Self-Inflicted Damage 262 | . . . 165 . . 27 . 70 Shots 8 | . . . 5 . . 1 . 2 Rammed 1 | . 1 . . . . . . . Targets Rammed 20 | . 2 . . . 5 . 13 . Kicked 18 | . . . . . 5 . 13 . Crushed 1 | . 1 . . . . . . . Highest Temperature 247 | . 247 . 30 . 2 28 . 150 Average Temperature 72 | . 132 . 16 . 2 14 . 56 Received Heat Transfer 768 | . 75 87 30 . 72 315 90 99 Effects 1 | . 1 . . . . . . . Energy Bleed 1 | . 1 . . . . . . . Siege Activations . | . . . . . . . . . Robots Corrupted . | . . . . . . . . . Combat Hostiles . | . . . . . . . . . Parts Fried . | . . . . . . . . . Impact Corruptions . | . . . . . . . . . Robots Melted . | . . . . . . . . . Combat Hostiles . | . . . . . . . . . Parts Melted . | . . . . . . . . . Heat Transferred 224 | . 224 . . . . . . . Parts Sabotaged . | . . . . . . . . . Parts Stolen . | . . . . . . . . . Parts Stripped . | . . . . . . . . . Power Chain Reactions 2 | . 2 . . . . . . . Missiles Intercepted . | . . . . . . . . . Alert | -11 -10 -9 -9 -9 -8 -8 -7 -7 ------- Run | Scr Mat Mat Min Exi Min Mat Fac Gar Peak Influence 537 | . 177 305 274 . 85 537 284 416 Initial 244 | . . 45 114 . . 33 244 198 Average 179 | . 67 170 202 . 45 330 252 364 Maximum Alert Level 2 | . . 1 1 . . 2 1 2 Low Security (%) 64 | . 100 67 81 . 100 20 . 4 Level 1 22 | . . 32 18 . . 29 100 50 Level 2 13 | . . . . . . 49 . 45 Level 3 . | . . . . . . . . . Level 4 . | . . . . . . . . . Level 5 . | . . . . . . . . . High Security . | . . . . . . . . . Max Security . | . . . . . . . . . Squads Dispatched 7 | . . 3 . . . 4 . . Investigation 5 | . . 2 . . . 3 . . Extermination . | . . . . . . . . . Reinforcement 2 | . . 1 . . . 1 . . Assault . | . . . . . . . . . Garrison . | . . . . . . . . . Intercept . | . . . . . . . . . Construction Impeded . | . . . . . . . . . Haulers Reinforced . | . . . . . . . . . Active Scanning Responses . | . . . . . . . . . Cargo Convoy Interrupts . | . . . . . . . . . Stealth | -11 -10 -9 -9 -9 -8 -8 -7 -7 --------- Run | Scr Mat Mat Min Exi Min Mat Fac Gar Distress Signals 5 | . 1 2 . . . 2 . . Communications Jammed . | . . . . . . . . . Distress Signals . | . . . . . . . . . Times Spotted 72 | . 14 15 7 . 4 21 3 8 Peak Tracking Total 9 | . 5 8 4 . 2 8 3 9 Tactical Retreats 5 | . . 2 . . 1 2 . . Traps | -11 -10 -9 -9 -9 -8 -8 -7 -7 ------- Run | Scr Mat Mat Min Exi Min Mat Fac Gar Traps Triggered 4 | . . 1 . . . 3 . . Indirectly . | . . . . . . . . . Trap Hack Attempts . | . . . . . . . . . Triggered . | . . . . . . . . . Disarmed . | . . . . . . . . . Reprogrammed . | . . . . . . . . . Reused . | . . . . . . . . . Traps Extracted . | . . . . . . . . . Installed . | . . . . . . . . . Triggered . | . . . . . . . . . Machines | -11 -10 -9 -9 -9 -8 -8 -7 -7 ---------- Run | Scr Mat Mat Min Exi Min Mat Fac Gar Machines Disabled 3 | . . 1 . . . 1 . 1 Max in Single Turn 1 | . . 1 . . . 1 . 1 Garrison Relay 1 | . . . . . . . . 1 Machines Sabotaged 1 | . . . . . . 1 . . Garrisons Compromised . | . . . . . . . . . Overloaded Fab Kills . | . . . . . . . . . Hacking | -11 -10 -9 -9 -9 -8 -8 -7 -7 --------- Run | Scr Mat Mat Min Exi Min Mat Fac Gar Machines Accessed 10 | . 3 2 . . . 4 1 . Terminals 9 | . 3 2 . . . 4 . . Fabricators . | . . . . . . . . . Repair Stations . | . . . . . . . . . Recycling Units . | . . . . . . . . . Scanalyzers . | . . . . . . . . . Garrison Access 1 | . . . . . . . 1 . Total Hacks 25 | . 10 7 . . . 7 1 . Successful 10 | . 5 1 . . . 3 1 . Failed 15 | . 5 6 . . . 4 . . Catastrophic 5 | . 1 2 . . . 2 . . Database Lockouts . | . . . . . . . . . Manual 14 | . 6 . . 1 . 7 . . Terminals 24 | . 10 7 . . . 7 . . Fabricators . | . . . . . . . . . Repair Stations . | . . . . . . . . . Recycling Units . | . . . . . . . . . Scanalyzers . | . . . . . . . . . Garrison Access 1 | . . . . . . . 1 . Terminal Hacks 6 | . 4 1 . . . 1 . . Level Access Points 2 | . 1 . . . . 1 . . Unreport Threat 1 | . 1 . . . . . . . Locate Traps 1 | . 1 . . . . . . . Zone Layout 2 | . 1 1 . . . . . . Fabricator Hacks . | . . . . . . . . . Repair Station Hacks . | . . . . . . . . . Recycling Unit Hacks . | . . . . . . . . . Scanalyzer . | . . . . . . . . . Garrison Access Hacks 1 | . . . . . . . 1 . Unlock Access 1 | . . . . . . . 1 . Unauthorized Hacks 3 | . 1 . . . . 2 . . Terminals 3 | . 1 . . . . 2 . . Track 1 | . 1 . . . . . . . Sabotage 2 | . . . . . . 2 . . Fabricators . | . . . . . . . . . Repair Stations . | . . . . . . . . . Recycling Units . | . . . . . . . . . Scanalyzers . | . . . . . . . . . Garrison Access . | . . . . . . . . . Data Cores Recovered . | . . . . . . . . . Used . | . . . . . . . . . Hacking Detections 7 | . 2 2 . . . 2 1 . Full Trace Events 3 | . . 1 . . . 2 . . Feedback Events . | . . . . . . . . . Feedback Blocked . | . . . . . . . . . Robot Schematics Acquired . | . . . . . . . . . Robots Built . | . . . . . . . . . Authchips . | . . . . . . . . . Time . | . . . . . . . . . Total Robot Build Rating . | . . . . . . . . . Part Schematics Acquired . | . . . . . . . . . Parts Built . | . . . . . . . . . Authchips . | . . . . . . . . . Time . | . . . . . . . . . Total Part Build Rating . | . . . . . . . . . Parts Repaired . | . . . . . . . . . Time . | . . . . . . . . . Parts Recycled . | . . . . . . . . . Recycled Matter . | . . . . . . . . . Retrieved Matter . | . . . . . . . . . Retrieved Components . | . . . . . . . . . Parts Scanalyzed . | . . . . . . . . . Part Schematics Acquired . | . . . . . . . . . Parts Damaged . | . . . . . . . . . Bothacking | -11 -10 -9 -9 -9 -8 -8 -7 -7 ------------ Run | Scr Mat Mat Min Exi Min Mat Fac Gar Used RIF Installer . | . . . . . . . . . Robots Hacked . | . . . . . . . . . Non-combat . | . . . . . . . . . Combat . | . . . . . . . . . Robot Hacks Applied . | . . . . . . . . . Relay Couplers Released 3 | . . . . . . . . 3 Machine Destruction 3 | . . . . . . . . 3 Fabnet Peak Effective % . | . . . . . . . . . Robots Rewired . | . . . . . . . . . Allies Hacked . | . . . . . . . . . Hacks Repelled . | . . . . . . . . . Allies | -11 -10 -9 -9 -9 -8 -8 -7 -7 -------- Run | Scr Mat Mat Min Exi Min Mat Fac Gar Total Allies . | . . . . . . . . . Largest Group . | . . . . . . . . . Highest-Rated Group . | . . . . . . . . . Highest-Rated Ally . | . . . . . . . . . Total Orders . | . . . . . . . . . Ally Attacks . | . . . . . . . . . Total Damage . | . . . . . . . . . Kills . | . . . . . . . . . Allies Corrupted . | . . . . . . . . . Allies Melted . | . . . . . . . . . Intel | -11 -10 -9 -9 -9 -8 -8 -7 -7 ------- Run | Scr Mat Mat Min Exi Min Mat Fac Gar Robot Analysis Total . | . . . . . . . . . Derelict Logs Recovered . | . . . . . . . . . Drone Launches . | . . . . . . . . . Drone Recoveries . | . . . . . . . . . Exploration | -11 -10 -9 -9 -9 -8 -8 -7 -7 ------------- Run | Scr Mat Mat Min Exi Min Mat Fac Gar Turns Passed 2199 | . 635 330 164 207 210 347 96 210 Spaces Moved 1505 | 1 319 159 146 217 153 279 66 165 Core . | . . . . . . . . . Treads 448 | . 289 159 . . . . . . Legs 793 | 1 30 . . 100 153 279 65 165 Wheels 263 | . . . 146 117 . . . . Hover 1 | . . . . . . . 1 . Flight . | . . . . . . . . . Fastest Speed 45 | 120 120 160 95 90 90 45 100 105 Average Speed 114 | 120 156 160 95 93 90 85 106 105 Slowest Speed 440 | 120 160 240 95 170 90 90 440 105 Overloaded Moves 25 | . . . . . . 25 . . Propulsion Burnouts . | . . . . . . . . . Robots Hopped . | . . . . . . . . . Cave-ins Triggered . | . . . . . . . . . Exploration Rate (%) 31 | 1 58 21 47 61 42 26 2 25 Regions Visited 8 Branch Regions 3 Pre-discovered Areas . | . . . . . . . . . Known Exits Taken 7 | . 1 1 1 1 1 1 1 . Unknown Exits Taken 1 | 1 . . . . . . . . Scrap Searched . | . . . . . . . . . Spaces Dug 20 | . . . . . . 11 . 9 Terrain Destroyed 267 | . 5 . 96 . . 128 . 38 Melee . | . . . . . . . . . Projectile . | . . . . . . . . . AOE 267 | . 5 . 96 . . 128 . 38 Terrain Rammed . | . . . . . . . . . Walls Destroyed . | . . . . . . . . . Machines Disabled . | . . . . . . . . . Actions | -11 -10 -9 -9 -9 -8 -8 -7 -7 --------- Run | Scr Mat Mat Min Exi Min Mat Fac Gar Total 1823 | . 407 211 159 223 199 345 93 186 Wait 134 | . 45 38 . . 26 15 1 9 Move 1497 | . 318 158 145 216 152 278 65 165 Hop . | . . . . . . . . . Pick Up 33 | . 10 . . 2 1 16 3 1 Fast Attach 4 | . 1 1 . . . . 2 . Attach 21 | . . . 2 2 . 12 3 2 Detach . | . . . . . . . . . Swap 18 | . 6 1 3 . 3 4 1 . Drop 14 | . 2 1 3 3 . . 5 . Fire 82 | . 23 12 6 . 12 20 . 9 Melee . | . . . . . . . . . Ram . | . . . . . . . . . Kick 18 | . . . . . 5 . 13 . Crush 2 | . 2 . . . . . . . Escape Stasis . | . . . . . . . . . Rewire . | . . . . . . . . . Trap . | . . . . . . . . . Miscellaneous . | . . . . . . . . . Route ------- -11/Scrapyard -10/Materials (discovered 3 exits: *Mat x3) -9/Materials -9/Mines -9/Exiles -8/Mines -8/Materials (discovered 3 exits: *Fac x3) -7/Factory -7/Garrison History --------- Turn | Location | Event 1 | -11/Scrapyard | Discovered new exit (range 0) 1 | -11/Scrapyard | Entered Materials 306 | -10/Materials | Build established: Mutant 386 | -10/Materials | Discovered new exit (range 16) 480 | -10/Materials | Identified exit to Materials 636 | -10/Materials | Entered another Materials area 636 | -9/Materials | Evolved 2 slots: Utility x2 945 | -9/Materials | Discovered new exit (range 13) 965 | -9/Materials | Identified exit to Mines 966 | -9/Materials | Entered Mines 967 | -9/Mines | Assembled infested the area 1050 | -9/Mines | Found a hidden stash of uninstalled traps 1126 | -9/Mines | Deemed a non-threat by the Exiles lab entrance 1126 | -9/Mines | Discovered new exit (range 5) 1129 | -9/Mines | Identified exit to Exiles 1130 | -9/Mines | Entered Exiles 1154 | -9/Exiles | Met 8R-AWN 1169 | -9/Exiles | Met EX-HEX 1199 | -9/Exiles | Met EX-BIN 1212 | -9/Exiles | Aligned with FarCom system 1213 | -9/Exiles | Given EX-Vault access code 1238 | -9/Exiles | Opened EX-Vault 1243 | -9/Exiles | Found Prototype Leg 1244 | -9/Exiles | Identified Potential Leg 1246 | -9/Exiles | Found Potential Leg 1268 | -9/Exiles | Warned to stay clear of 0b10 Research branches 1294 | -9/Exiles | Met EX-DEC 1326 | -9/Exiles | Discovered new exit (range 14) 1336 | -9/Exiles | Identified exit to Mines 1337 | -9/Exiles | Left Exiles lab with Potential Leg 1337 | -9/Exiles | Entered Mines 1541 | -8/Mines | Discovered new exit (range 7) 1546 | -8/Mines | Identified exit to Materials 1547 | -8/Mines | Entered Materials 1547 | -8/Materials | Evolved 2 slots: Utility x2 1570 | -8/Materials | Identified exit to Factory 1652 | -8/Materials | Lost 4 parts (4w) 1665 | -8/Materials | Destroyed 8 combat bots 1894 | -8/Materials | Entered Factory 1894 | -7/Factory | Evolved 2 slots: Propulsion x2 1989 | -7/Factory | Identified exit to Garrison 1990 | -7/Factory | Entered Garrison 2018 | -7/Garrison | Triggered checkpoint 2105 | -7/Garrison | Garrison Relay disabled 2180 | -7/Garrison | Triggered checkpoint 2200 | -7/Garrison | Self-destructed Last Messages --------------- >>Unlock Access door unlocked. 01989_ EXIT=UNLOCKED: GARRISON LOCATION=GARRISON GOAL=ESCAPE 01990_ Receiving FarCom transmissions... 02000_ ALERT: Garrison interior compromised. 02024_ Hacking Suite destroyed. 02028_ Maneuvering Thrusters destroyed. 02031_ G-47 Trooper destroyed. 02043_ Acquired 3 matter. 02045_ Acquired 5 matter. 02060_ The unstable cave ceiling collapses. 02105_ Garrison Relay disabled. 02105_ Relay Coupler [Brawler] tumbles out of relay unit. 02105_ Relay Coupler [Sentry] tumbles out of relay unit. 02105_ Relay Coupler [NC] tumbles out of relay unit. 02113_ Acquired Relay Coupler [Sentry]. 02168_ The unstable cave ceiling collapses. 02180_ Beams of light sweep through the air. An alarm sounds. Map ----- +----------------------------------------------------+ | ?????????????????????????????????????????????????? | | ?????????????????????????????????????????????????? | | ?????????????????????????????????????????????????? | | ?????????????????????????????????????????????????? | | ?????????????????????????????????????????????????? | | ?????????????????????????????????????????????????? | | ?????????????????????????????????????????????????? | | ?????????????????????#######?????????????????????? | | ?????????????????????# #?????????????????????? | | ?????????????????????# #?????????????????????? | | ?????????????????????# #?????????????????????? | | ?????????????????????### #?????????????????????? | | ???????????????????????# #?????????????????????? | | ???????????????????????# #?????????????????????? | | ???????????????????????# #?????????????????????? | | ???????????????????????# #?????????????????????? | | ???????????????????????# #?????????????????????? | | ???????????????????????# #?????????????????????? | | ???????????????????????# #?????????????????????? | | ???????????????????????# #?????????????????????? | | ???????????????????????# #?????????????????????? | | ???????????????????????# #?????????????????????? | | ???????????????????????# #?????????????????????? | | ???????????????????????# #?????????????????????? | | ???????????????????????# #?????????????????????? | | ???????????????????????# @ #?????????????????????? | | ???????????????????????# ###???????????????????? | | ?????????????????????### # #???????????????????? | | ????????????????????## #???????????????????? | | ????????#####???????# ##??????????????????? | | ???????## # ########## # #########??????????? | | ???????# ^ #??????????? | | ???????## ^ = #??????????? | | ????????### ##### # ## #### #??????????? | | ?????????# #??# # = d ## #??# #??????????? | | ?????????#######??##### # # #??# #??????????? | | ???????????????????# # # #l#??# #??????????? | | ???????????????????# ## # #??# #??????????? | | ???????????????????# # g####g#??# #??????????? | | ???????????????????# ## pi### ### #?????????? | | ???????????????????# ; ?????? | | ???????????????????##### ?????? | | ???????????????????????# ?????? | | ???????????????????????######## ## ??????? | | ???????????????????????????????#### #??????????? | | ???????????????????????????????????? ????????? | | ?????????????????????????????????????? ???????? | | ???????????????????????????????????????? ???????? | | ?????????????????????????????????????????????????? | | ?????????????????????????????????????????????????? | +----------------------------------------------------+ Best States ------------- Heat Dissipation 48 Energy Generation 16 Energy Capacity 290 Matter Stores 300 Matter Capacity 300 Sight Range 16 Terrain Scan Density 10 Armor Coverage 600 Resistance: TH 10 Propulsion Shielding 66 Evasion (%) 60 Target Analysis 5 Recoil Reduction 2 Offensive Hacking 10 Item Schematics ----------------- None Robot Schematics ------------------ None Fabricated ------------ Nothing Alien Tech Used ----------------- None Achievements -------------- None Challenges ------------ None Game ------ Seed 1337 Manual? 1 Play Time 00:24:20 Cumulative 82.9 hours Start 2021.11.09 @ 23:43:13 End 2021.11.10 @ 00:05:23 Sessions 1 Manual Loads 0 Difficulty Rogue Special Mode None Game No. 105 Rogue 105 Adventurer 0 Explorer 0 Win Type - Total 0 Types 0/0/0/0/0/0/0/0/0 Lore% 52 Gallery% 48 Achievement% 41 Wizard Run 0 Options --------- ASCII 1 Keyboard 0 Movement Vi Keybinds 0 Fullscreen 2 Font 20/SmallcapsGlow Map View 66x50 Tactical HUD 1 Map Filters NONE Filters NONE Steam 1 RUN: caaa33d8-95a6-485d-9515-cd481919a053